Cogmind - Beta 17.1 @@@ ROGUE MODE // 2026.09.24 @ 19:09:29 Player: deadbabe Result: Destroyed by P-80 Master with Gamma Rifle Performance ------------- Evolutions (7) 3500 Regions Visited (16) 3200 Robots Destroyed (123) 615 Value Destroyed (5495) 5495 Prototype IDs (23) 460 Alien Tech Used (0) 0 Bonus (435) 435 TOTAL SCORE: 13705 Bonus ------- High Alert Combat Kills 107 Follower Combat Kills 675 Aligned with FarCom 300 Friendly Fire -647 Cogmind --------- Core Integrity 0/1300 Matter 300/300 Energy 100/100 System Corruption 25% Temperature Cool (0) Movement Core (2050) Ox40 Location -3/Research Parts ------- > --- POWER (1) -------- (None) > --- PROPULSION (4) --- (None) > --- UTILITY (14) ----- High-capacity Storage Unit Huge Storage Unit Machine Analyzer Enhanced Optical Array Improved Signal Interpreter Advanced Terrain Scan Processor Advanced Terrain Scan Processor Advanced Target Analyzer Advanced System Restoration Module > --- WEAPON (2) ------- (None) > --- INVENTORY (25) --- Improved Coolant Injector Medium Matter Pod (100) Energy Filter Peak State ------------ > --- POWER ------------ Neutrino Core > --- PROPULSION ------- Heavy Treads Heavy Treads > --- UTILITY ---------- Coolant Injector Improved Coolant Injector High-capacity Storage Unit Machine Analyzer Enhanced Optical Array Improved Signal Interpreter Advanced Terrain Scan Processor Advanced Targeting Computer Advanced Targeting Computer Hardened Heavy Armor Plating Advanced System Restoration Module > --- WEAPON ----------- YOLO Cannon > --- INVENTORY -------- Light Nuclear Core Heavy Treads Heavy Treads Heavy Treads Huge Storage Unit Medium Matter Pod Improved Signal Interpreter Advanced Terrain Scan Processor Improved Medium Armor Plating Advanced Powered Armor Advanced System Restoration Module Advanced System Restoration Module Advanced System Restoration Module Coil Gun Coil Gun KE Penetrator Dirty Datajack [Rating: 106] Favorites ----------- Power Light Nuclear Core Engine Light Deuterium Engine Power Core Light Nuclear Core Reactor Light Antimatter Reactor Propulsion Heavy Treads Treads Heavy Treads Leg Aluminum Leg Wheel Compact Wheel Hover Unit Improved Antigrav System Utility Advanced Targeting Computer Device Coolant Injector Storage High-capacity Storage Unit Processor Advanced Targeting Computer Protection Improved Medium Armor Plating Weapon Coil Gun Energy Gun Pulse Rifle Energy Cannon YOLO Cannon Ballistic Gun Coil Gun Ballistic Cannon Enhanced Gauss Cannon Special Melee Weapon Dirty Datajack Build | -11 -10 -10 -10 -9 -8 -7 -6 -5 -5 -5 -5 -5 -4 -4 -4 -3 ------- Run | Yrd Mat Min Exi Min Mat Fac Fac Fac Was Fac Upp Upp Fac Upp Upp Res Slots Evolved 14 | . . . . . 4 2 2 2 . . . . 2 . . 2 Power . | . . . . . . . . . . . . . . . . . Propulsion 2 | . . . . . 2 . . . . . . . . . . . Utility 12 | . . . . . 2 2 2 2 . . . . 2 . . 2 Weapon . | . . . . . . . . . . . . . . . . . Parts Attached 118 | 7 9 6 2 . 4 11 8 31 3 . 2 . 3 6 . 26 Power 12 | . 1 2 . . 1 1 1 2 1 . 1 . . 1 . 1 Engine 4 | . . 1 . . 1 . 1 1 . . . . . . . . Core 7 | . 1 1 . . . 1 . 1 1 . 1 . . 1 . . Reactor 1 | . . . . . . . . . . . . . . . . 1 Propulsion 39 | 4 5 2 . . 2 2 3 9 2 . . . 1 1 . 8 Treads 14 | . . . . . . 2 3 2 2 . . . 1 1 . 3 Leg 21 | 2 5 2 . . 2 . . 7 . . . . . . . 3 Wheel 2 | 2 . . . . . . . . . . . . . . . . Hover 2 | . . . . . . . . . . . . . . . . 2 Flight . | . . . . . . . . . . . . . . . . . Utility 42 | 1 2 . 1 . 1 5 3 11 . . 1 . 2 2 . 13 Device 14 | . . . . . . 2 2 6 . . . . . . . 4 Storage 8 | 1 1 . 1 . . 1 . . . . . . . . . 4 Processor 11 | . 1 . . . 1 1 1 2 . . . . 1 1 . 3 Hackware . | . . . . . . . . . . . . . . . . . Protection 9 | . . . . . . 1 . 3 . . 1 . 1 1 . 2 Artifact . | . . . . . . . . . . . . . . . . . Weapon 25 | 2 1 2 1 . . 3 1 9 . . . . . 2 . 4 Energy Gun 2 | . . 1 . . . . . 1 . . . . . . . . Energy Cannon 2 | . . 1 . . . . . 1 . . . . . . . . Ballistic Gun 16 | 2 1 . 1 . . 3 1 5 . . . . . 1 . 2 Ballistic Cannon 4 | . . . . . . . . 2 . . . . . 1 . 1 Launcher . | . . . . . . . . . . . . . . . . . Special Weapon . | . . . . . . . . . . . . . . . . . Impact Weapon . | . . . . . . . . . . . . . . . . . Slashing Weapon . | . . . . . . . . . . . . . . . . . Piercing Weapon . | . . . . . . . . . . . . . . . . . Special Melee Weapon 1 | . . . . . . . . . . . . . . . . 1 Unidentified Prototypes 1 | . . . 1 . . . . . . . . . . . . . Corrupted Parts 1 | . . . . . . . . . . . . . . . . 1 System Corruption 3 | . . . . . . . . . . . . . . . . 3 Parts Lost 78 | . 2 2 . . 1 7 4 23 . . . . 1 6 . 32 Power 8 | . . 1 . . 1 1 1 1 . . . . . 1 . 2 Propulsion 29 | . 1 . . . . 5 . 11 . . . . 1 1 . 10 Utility 25 | . . . . . . . 1 6 . . . . . 3 . 15 Weapon 16 | . 1 1 . . . 1 2 5 . . . . . 1 . 5 Highest Loss Streak 14 | . 1 1 . . 1 6 2 7 . . . . 1 6 . 14 To Critical Strikes 2 | . . . . . . . . 1 . . . . . . . 1 Average Backups 15 | 1 5 13 14 16 17 14 17 17 17 17 17 17 17 16 18 17 Power 2 | . . 1 2 2 4 4 4 4 2 1 1 1 1 . . . Propulsion 4 | 1 4 9 8 7 6 5 4 2 1 3 3 3 3 2 3 3 Utility 6 | . . 3 4 4 4 3 7 6 9 10 10 10 9 9 12 11 Weapon 1 | . . . . 2 3 1 1 3 3 3 2 2 3 2 2 1 Tool/Special . | . . . . . . . . . . . . . . . . . Unused Backups 14 | . . 1 1 . 3 . . 1 2 . 2 . . . . 4 Power 4 | . . 1 . . 1 . . 1 1 . . . . . . . Propulsion 3 | . . . 1 . 1 . . . 1 . . . . . . . Utility 5 | . . . . . . . . . . . 1 . . . . 4 Weapon 2 | . . . . . 1 . . . . . 1 . . . . . Tool/Special . | . . . . . . . . . . . . . . . . . Average Slot Usage (%) 82 | . 94 95 95 85 73 86 79 83 85 82 82 82 77 81 78 59 Engine 3 | . . 7 14 14 9 3 . 2 . . . . . . . . Core 3 | . 11 5 . . . 2 4 1 5 5 5 5 5 4 5 . Treads 7 | . . . . . . 6 18 12 11 11 11 11 9 9 10 6 Leg 10 | . 25 28 28 28 35 15 . 3 2 . . . . . . . Device 10 | . . . . . . 10 9 16 17 17 17 17 15 13 10 12 Storage 7 | . 14 14 14 14 9 7 6 5 5 5 5 5 5 5 5 4 Processor 22 | . 11 14 14 14 10 22 20 23 29 29 29 29 31 30 31 23 Protection 3 | . . . . . . 2 6 4 5 5 5 5 4 4 5 3 Energy Gun 1 | . . 6 11 . . . . . . . . . . . . . Energy Cannon 2 | . . 6 11 . . . . . 4 5 5 5 5 . . . Ballistic Gun 6 | . 28 11 . 14 9 12 11 6 . . . . . 8 5 2 Peak Build Rating 106 | 5 10 17 27 29 35 41 45 72 95 93 97 97 106 106 82 90 Average Rating 57 | 4 8 12 16 28 32 32 36 58 90 93 94 97 102 91 82 72 On Entrance 53 | . 5 10 17 14 29 35 31 45 71 93 93 97 97 106 82 82 Avg Prop Armor Cover (%) 10 | . . . . . . . . 12 12 . 11 . . . . 9 Naked Turns . | . . . . . . . . . . . . . . . . . Heaviest Build 97 | 7 28 34 54 55 55 59 63 74 75 75 84 84 97 97 66 81 Greatest Support 140 | 26 26 25 25 25 45 45 90 90 140 140 140 140 140 140 140 140 Greatest Overweight (x) 4 | . 1 1 2 2 1 1 1 4 2 . 1 . . . . 1 Average Overweight (x) . | . . 1 1 2 1 1 . . . . . . . . . . Largest Inventory Capacity 25 | 8 15 15 20 20 20 25 20 20 20 20 20 20 20 20 20 25 Average Capacity 19 | 7 14 15 19 20 20 20 20 20 20 20 20 20 20 20 20 20 Most Carried 20 | 2 12 15 17 18 20 18 20 20 20 20 20 20 20 20 20 20 Average Carried 17 | 1 5 13 15 17 18 15 18 18 19 20 19 20 19 18 19 17 Final Capacity 25 | 8 15 15 20 20 20 20 20 20 20 20 20 20 20 20 20 25 Final Carried 20 | 2 12 15 17 18 19 18 20 18 20 20 20 20 20 19 20 3 Class Distribution -------------------- 63% | Scavenger-Mutant 33% | Mutant Dominant Class ---------------- Mutant | -10/Materials Mutant | -10/Mines Mutant | -10/Exiles Mutant | -9/Mines Mutant | -8/Materials Scavenger-Mutant | -7/Factory Scavenger-Skirmisher | -6/Factory Scavenger-Mutant | -5/Factory Scavenger-Mutant | -5/Waste Scavenger-Mutant | -5/Factory Scavenger-Mutant | -5/Upper Caves Scavenger-Mutant | -5/Upper Caves Scavenger-Mutant | -4/Factory Scavenger-Mutant | -4/Upper Caves Scavenger-Mutant | -4/Upper Caves Scavenger-Mutant | -3/Research Resources | -11 -10 -10 -10 -9 -8 -7 -6 -5 -5 -5 -5 -5 -4 -4 -4 -3 ----------- Run | Yrd Mat Min Exi Min Mat Fac Fac Fac Was Fac Upp Upp Fac Upp Upp Res Matter Collected 3181 | 270 211 219 . 30 35 93 240 908 95 . 20 . 25 260 10 765 Remotely . | . . . . . . . . . . . . . . . . . Salvage Created 6658 | . 460 88 . 60 392 149 145 880 1579 515 95 726 163 381 . 1025 Parts 246 | . 31 7 . 7 22 10 7 49 19 14 2 23 2 15 . 38 Haulers Intercepted 1 | . . . . . . . . . . 1 . . . . . . Recyclers Shooed 10 | . . . . . 1 1 1 6 . . . . . . . 1 Parts Field Recycled . | . . . . . . . . . . . . . . . . . Retrieved Matter . | . . . . . . . . . . . . . . . . . Parts Self-Destructed 38 | . . . . . . . . . . . 4 22 . 12 . . Prevented 1 | . . . . . . . . . . . 1 . . . . . Parts Restored . | . . . . . . . . . . . . . . . . . Kills | -11 -10 -10 -10 -9 -8 -7 -6 -5 -5 -5 -5 -5 -4 -4 -4 -3 ------- Run | Yrd Mat Min Exi Min Mat Fac Fac Fac Was Fac Upp Upp Fac Upp Upp Res Combat Hostiles Destroyed 109 | . 12 4 . 5 9 5 3 17 6 5 3 15 3 7 . 15 Guns 59 | . 12 4 . 5 9 5 3 8 . . . . . 4 . 9 Cannons 25 | . . . . . . . . 8 2 2 1 2 1 3 . 6 AOE 14 | . . . . . . . . . . 2 2 10 . . . . Classes Destroyed 16 | . 2 . . . 4 . . 4 1 1 . 2 . 1 . 1 Worker 4 | . . . . . . . . 2 . 2 . . . . . . Hauler 1 | . . . . . . . . . . 1 . . . . . . Recycler 2 | . . . . . . . . . . . . . . . . 2 Mechanic 2 | . . . . . 1 . . 1 . . . . . . . . Operator 2 | . . . . . 1 . . 1 . . . . . . . . Watcher 1 | . . . . . 1 . . . . . . . . . . . Swarmer 27 | . 3 3 . 5 4 4 1 1 . . . 1 . 1 . 4 Grunt 46 | . 9 1 . . 4 1 . 8 . 2 3 11 . 3 . 4 Duelist 2 | . . . . . . . . . . . . 2 . . . . Sentry 12 | . . . . . 1 . 2 2 . 1 . 1 2 2 . 1 Hunter 3 | . . . . . . . . 1 . . . . . . . 2 Programmer 9 | . . . . . . . . 4 . 1 . . . . . 4 Behemoth 3 | . . . . . . . . 1 . 1 . . 1 . . . Compactor 6 | . . . . . . . . . 6 . . . . . . . Master Thief 1 | . . . . . . . . . . . . . . 1 . . Thug 1 | . . . . . . . . . . 1 . . . . . . Savage 1 | . . . . . . . . . . . . 1 . . . . Best Kill Streak 5 | . 4 3 . 4 4 4 2 3 3 3 3 5 1 4 . 4 Combat Bots Only 5 | . 4 3 . 4 3 4 2 3 3 2 3 5 1 4 . 3 Max Kills in Single Turn 3 | . 1 1 . 1 1 2 1 2 1 3 3 3 1 2 . 1 Gunslinging 1 | . . . . . . 1 . . . . . . . . . . Exploded 2 | . . . . . . . . . . 1 2 2 . . . . Melee . | . . . . . . . . . . . . . . . . . Uniques/NPCs Destroyed . | . . . . . . . . . . . . . . . . . Combat | -11 -10 -10 -10 -9 -8 -7 -6 -5 -5 -5 -5 -5 -4 -4 -4 -3 -------- Run | Yrd Mat Min Exi Min Mat Fac Fac Fac Was Fac Upp Upp Fac Upp Upp Res Hostile Shots Fired 1192 | . 69 23 . 8 27 55 285 266 . 8 1 52 19 82 . 297 Missed 413 | . 15 9 . 3 9 14 147 93 . 2 . 18 8 31 . 64 Hits 779 | . 54 14 . 5 18 41 138 173 . 6 1 34 11 51 . 233 Melee 4 | . . . . . . . . . . . . 2 . 2 . . Projectile 775 | . 54 14 . 5 18 41 138 173 . 6 1 32 11 49 . 233 AOE 3 | . . . . 1 . . . 2 . . . . . . . . Critical Strikes 32 | . 1 . . . 1 . . 10 . . . . . 1 . 19 Part Disruptions 1 | . . . . . . . . . . . 1 . . . . . Damage Taken 14309 | . 647 141 . 76 335 651 1015 3473 117 201 32 851 336 1326 . 5108 Core 2473 | . 146 20 . 13 25 121 138 549 . 18 . 64 36 22 . 1321 Absorbed by Shields . | . . . . . . . . . . . . . . . . . Regen/Repaired (Parts) 30 | . . . . . . . . . 30 . . . . . . . Core Remaining (%) 74 | 100 . . . 28 95 82 83 . . . . 36 . . 94 . Volleys Fired 358 | . 46 18 . . . 11 22 98 8 6 1 13 7 30 . 98 Largest 2 | . 2 2 . . . 2 2 2 1 1 1 1 1 2 . 2 Hottest 100 | . 40 40 . . . 45 51 100 100 100 100 100 100 100 . 85 Shots Fired 556 | . 90 35 . 8 37 33 34 122 8 6 1 13 7 56 . 106 Gun 421 | . 90 35 . 8 37 33 34 70 . . . . . 47 . 67 Cannon 135 | . . . . . . . . 52 8 6 1 13 7 9 . 39 Launcher . | . . . . . . . . . . . . . . . . . Special . | . . . . . . . . . . . . . . . . . Kinetic 502 | . 90 35 . 8 37 33 34 106 . . . . . 53 . 106 Thermal 39 | . . . . . . . . 1 8 6 1 13 7 3 . . Explosive . | . . . . . . . . . . . . . . . . . Electromagnetic 15 | . . . . . . . . 15 . . . . . . . . Robot Hit Streak 19 | . 10 5 . 10 7 19 17 15 6 8 3 3 9 11 . 13 Robot Miss Streak 5 | . 5 3 . 1 4 2 2 5 2 1 . 4 . 2 . 2 Penetration Max 1 | . . . . 1 1 1 1 1 . . . . . 1 . 1 Secondary Targets 2 | . 1 . . . . 1 . . . . . . . . . . Max Gunslinging Chain 1 | . 1 . . . . 1 . . . . . . . . . . Autonomous 58 | . . . . 8 37 13 . . . . . . . . . . Shots Hit Robots 419 | . 57 20 . 7 28 25 29 89 6 4 1 6 7 39 . 101 Core Hits 221 | . 27 6 . 5 16 10 11 43 2 14 2 18 4 19 . 44 Critical Kills 16 | . . . . . . . . 3 4 1 . 3 2 . . 3 Critical Parts Destroyed 8 | . . . . . . . 1 2 . . . . . 2 . 3 Critical Strikes 35 | . . . . . . . 1 11 4 1 . 3 2 3 . 10 Meltdown 11 | . . . . . . . . 1 4 1 . 3 2 . . . Destroy 13 | . . . . . . . 1 4 . . . . . 2 . 6 Blast 11 | . . . . . . . . 6 . . . . . 1 . 4 Melee Attacks 20 | . . . . . . . . . . . . . . . . 20 Impact . | . . . . . . . . . . . . . . . . . Slashing . | . . . . . . . . . . . . . . . . . Piercing 20 | . . . . . . . . . . . . . . . . 20 Sneak Attacks 2 | . . . . . . . . . . . . . . . . 2 Combat Hostiles . | . . . . . . . . . . . . . . . . . Follow-up Attacks . | . . . . . . . . . . . . . . . . . Damage Inflicted 15821 | . 535 213 . 245 878 651 463 2772 930 1213 373 2395 1062 1390 . 2701 Guns 6670 | . 534 213 . 245 876 649 463 1085 . . . . . 959 . 1646 Cannons 6260 | . . . . . . . . 1560 804 664 150 974 776 367 . 965 Explosions 2773 | . . . . . . . . 104 126 549 223 1421 286 64 . . Melee 38 | . . . . . . . . . . . . . . . . 38 Ramming 80 | . 1 . . . 2 2 . 23 . . . . . . . 52 Kinetic 9164 | . 534 213 . 245 876 649 463 2384 . . . . . 1189 . 2611 Thermal 6279 | . . . . . . . . 225 930 1093 373 2395 1062 201 . . Explosive . | . . . . . . . . . . . . . . . . . Electromagnetic 260 | . . . . . . . . 140 . 120 . . . . . . Impact . | . . . . . . . . . . . . . . . . . Slashing . | . . . . . . . . . . . . . . . . . Piercing 38 | . . . . . . . . . . . . . . . . 38 Highest Corruption 26 | . . . . . . 4 . 7 . . . . . . . 26 Average Corruption 5 | . . . . . . 2 . 4 . . . . . . . 10 Corruption Purged 15 | . . . . . . . . 11 . . . . . . . 4 Corruption Blocked . | . . . . . . . . . . . . . . . . . Effects 50 | . . . . . . 13 . 18 . . . . . . . 19 Message Errors 12 | . . . . . . 4 . 4 . . . . . . . 4 Matter Fused 13 | . . . . . . 2 . 4 . . . . . . . 7 Heat Flow Errors 4 | . . . . . . 2 . 1 . . . . . . . 1 Energy Discharges 4 | . . . . . . 1 . 3 . . . . . . . . Parts Rejected 3 | . . . . . . 1 . 2 . . . . . . . . Data Loss (minor) 5 | . . . . . . . . 2 . . . . . . . 3 Data Loss (major) 4 | . . . . . . . . 1 . . . . . . . 3 Misfires 3 | . . . . . . 2 . . . . . . . . . 1 Weapon Failures 2 | . . . . . . 1 . 1 . . . . . . . . Overload Shots . | . . . . . . . . . . . . . . . . . Overflow Damage 766 | . . . . . . . . 89 48 316 106 158 . . . 49 Projectiles 702 | . . . . . . . . 72 48 269 106 158 . . . 49 Explosions 64 | . . . . . . . . 17 . 47 . . . . . . Melee . | . . . . . . . . . . . . . . . . . Knockbacks 31 | . . . . . . . . 17 . . . . . . . 14 Impact . | . . . . . . . . . . . . . . . . . Kinetic 25 | . . . . . . . . 13 . . . . . . . 12 Secondary 6 | . . . . . . . . 4 . . . . . . . 2 Self-Inflicted Damage 439 | . . . . . . . . . 117 . . 128 . 194 . . Shots 7 | . . . . . . . . . 2 . . 2 . 3 . . Rammed 6 | . . . . . . . . 1 . . . . . . . 5 Targets Rammed 25 | . 2 . . . 2 1 . 3 . . . . . . . 17 Kicked 19 | . 2 . . . 2 1 . 2 . . . . . . . 12 Crushed . | . . . . . . . . . . . . . . . . . Highest Temperature 248 | . 25 8 . . 11 248 12 179 15 . 172 24 27 40 . 220 Average Temperature 24 | . 7 4 . . 11 104 9 23 10 . 76 8 19 15 . 68 Received Heat Transfer 2193 | . 327 45 . . 108 . 225 600 . 9 9 192 45 198 . 435 Siege Activations . | . . . . . . . . . . . . . . . . . Martial Activations . | . . . . . . . . . . . . . . . . . Shielding Activations . | . . . . . . . . . . . . . . . . . Robots Disrupted 1 | . . . . . . . . . . 1 . . . . . . Combat Hostiles . | . . . . . . . . . . . . . . . . . Robots Corrupted . | . . . . . . . . . . . . . . . . . Combat Hostiles . | . . . . . . . . . . . . . . . . . Parts Fried . | . . . . . . . . . . . . . . . . . Impact Corruptions . | . . . . . . . . . . . . . . . . . Robots Melted 11 | . . . . . . . . 1 4 1 . 3 2 . . . Combat Hostiles 11 | . . . . . . . . 1 4 1 . 3 2 . . . Parts Melted 23 | . . . . . . . . 2 6 6 . 6 3 . . . Heat Transferred 5280 | . . . . . . . . 160 720 880 400 2080 880 160 . . Parts Sabotaged . | . . . . . . . . . . . . . . . . . Parts Stolen 1 | . . . . . . . . . . . . . . 1 . . Parts Stripped . | . . . . . . . . . . . . . . . . . Power Chain Reactions . | . . . . . . . . . . . . . . . . . Alert | -11 -10 -10 -10 -9 -8 -7 -6 -5 -5 -5 -5 -5 -4 -4 -4 -3 ------- Run | Yrd Mat Min Exi Min Mat Fac Fac Fac Was Fac Upp Upp Fac Upp Upp Res Maximum Alert Level 3 | . . . . . . . . 1 . 3 . . 2 . . . Low Security (%) 91 | 100 100 100 . 100 100 100 100 99 100 34 . . . . . 100 Level 1 5 | . . . . . . . . . . 2 . . 95 . . . Level 2 . | . . . . . . . . . . 6 . . 4 . . . Level 3 3 | . . . . . . . . . . 56 . . . . . . Level 4 . | . . . . . . . . . . . . . . . . . Level 5 . | . . . . . . . . . . . . . . . . . High Security . | . . . . . . . . . . . . . . . . . Max Security . | . . . . . . . . . . . . . . . . . Peak Influence 863 | . 176 99 . 92 91 72 32 200 62 863 . . 408 . . 112 Initial 305 | . . 58 . . . 26 . . 62 . . . 305 . . . Average 72 | . 44 30 . 28 47 10 2 60 31 508 . . 299 . . 23 Influence Increases 4625 | . 351 179 . 112 255 114 70 656 80 1063 479 431 283 135 . 417 Destroy 0b10 Robot/C 2440 | . 240 100 . 100 180 100 60 340 . 260 240 340 60 120 . 300 Destroy 0b10 Robot/NC 75 | . . . . . 15 . . 20 . 30 . . . . . 10 Destroy Leader 458 | . 50 20 . 10 32 10 10 90 . 96 10 30 30 . . 70 Allied During Kill 690 | . . 14 . . . . . . . 386 229 61 . . . . Successful Hack 24 | . 16 . . . . . . 8 . . . . . . . . Disable Machine 285 | . . . . . 15 . . 30 . 165 . . 75 . . . Destroy Structure 443 | . . . . 2 13 4 . 78 80 126 . . 118 . . 22 Lose Combat Pursuer 210 | . 45 45 . . . . . 90 . . . . . 15 . 15 Influence Decreases 4625 | . 199 331 . 112 196 173 70 477 259 228 832 427 371 533 . 417 Entered New Map 976 | . . 94 . . . 33 . . 117 . 310 93 181 148 . . Time Decay 2939 | . 189 217 . 112 186 130 50 313 142 148 422 254 180 352 . 244 Lost Part 450 | . 10 20 . . 10 10 20 164 . . . . 10 33 . 173 Lost Ally 260 | . . . . . . . . . . 80 100 80 . . . . Squads Dispatched 34 | . 4 1 . . 1 3 4 11 . 6 . 1 . . . 3 Investigation 3 | . 1 1 . . . . . 1 . . . . . . . . Extermination 8 | . . . . . . 2 1 3 . . . . . . . 2 Reinforcement 11 | . 3 . . . 1 1 . 4 . 1 . . . . . 1 Assault 3 | . . . . . . . . . . 2 . 1 . . . . Garrison 9 | . . . . . . . 3 3 . 3 . . . . . . Intercept . | . . . . . . . . . . . . . . . . . Searches Triggered . | . . . . . . . . . . . . . . . . . Construction Impeded 5 | . . . . . . 1 . 2 . 1 . . . . . 1 Haulers Reinforced . | . . . . . . . . . . . . . . . . . Active Scanning Responses . | . . . . . . . . . . . . . . . . . Cargo Convoy Interrupts . | . . . . . . . . . . . . . . . . . Stealth | -11 -10 -10 -10 -9 -8 -7 -6 -5 -5 -5 -5 -5 -4 -4 -4 -3 --------- Run | Yrd Mat Min Exi Min Mat Fac Fac Fac Was Fac Upp Upp Fac Upp Upp Res Distress Signals 9 | . 2 . . . 2 1 . 2 . 1 . . . . . 1 Communications Jammed . | . . . . . . . . . . . . . . . . . Distress Signals . | . . . . . . . . . . . . . . . . . Times Spotted 187 | . 20 8 . 6 14 16 12 39 5 14 5 15 4 9 . 20 Peak Tracking Total 8 | . 8 5 . 3 4 4 4 5 2 4 6 5 2 4 . 8 Tactical Retreats 9 | . 2 2 . . . . . 3 . . . . . 1 . 1 Traps | -11 -10 -10 -10 -9 -8 -7 -6 -5 -5 -5 -5 -5 -4 -4 -4 -3 ------- Run | Yrd Mat Min Exi Min Mat Fac Fac Fac Was Fac Upp Upp Fac Upp Upp Res Traps Triggered 8 | . 1 . . . . . . 2 . . . . 1 . . 4 Indirectly . | . . . . . . . . . . . . . . . . . Trap Hack Attempts . | . . . . . . . . . . . . . . . . . Triggered . | . . . . . . . . . . . . . . . . . Disarmed . | . . . . . . . . . . . . . . . . . Reprogrammed . | . . . . . . . . . . . . . . . . . Reused . | . . . . . . . . . . . . . . . . . Traps Extracted . | . . . . . . . . . . . . . . . . . Installed . | . . . . . . . . . . . . . . . . . Triggered . | . . . . . . . . . . . . . . . . . Machines | -11 -10 -10 -10 -9 -8 -7 -6 -5 -5 -5 -5 -5 -4 -4 -4 -3 ---------- Run | Yrd Mat Min Exi Min Mat Fac Fac Fac Was Fac Upp Upp Fac Upp Upp Res Machines Disabled 20 | . . . . . 1 . . 2 . 11 1 . 5 . . . Max in Single Turn 5 | . . . . . 1 . . 1 . 3 . . 5 . . . Garrison Access 1 | . . . . . 1 . . . . . . . . . . . Machines Repaired . | . . . . . . . . . . . . . . . . . Machines Dismantled . | . . . . . . . . . . . . . . . . . Machines Sabotaged . | . . . . . . . . . . . . . . . . . Overloaded Fab Kills . | . . . . . . . . . . . . . . . . . Hacking | -11 -10 -10 -10 -9 -8 -7 -6 -5 -5 -5 -5 -5 -4 -4 -4 -3 --------- Run | Yrd Mat Min Exi Min Mat Fac Fac Fac Was Fac Upp Upp Fac Upp Upp Res Machines Accessed 12 | . 2 1 5 . 1 1 . 2 . . . . . . . . Terminals 3 | . 2 . . . . . . 1 . . . . . . . . Fabricators 1 | . . . . . . . . 1 . . . . . . . . Repair Stations . | . . . . . . . . . . . . . . . . . Recycling Units . | . . . . . . . . . . . . . . . . . Scanalyzers 1 | . . . . . . 1 . . . . . . . . . . Garrison Access 1 | . . . . . 1 . . . . . . . . . . . Total Hacks 65 | . 2 1 50 . 3 2 . 7 . . . . . . . . Successful 58 | . 2 1 50 . 1 1 . 3 . . . . . . . . Failed 7 | . . . . . 2 1 . 4 . . . . . . . . Catastrophic 1 | . . . . . . . . 1 . . . . . . . . Database Lockouts . | . . . . . . . . . . . . . . . . . Manual 6 | . . . 1 . . . . 5 . . . . . . . . Terminals 4 | . 2 . . . . . . 2 . . . . . . . . Fabricators 5 | . . . . . . . . 5 . . . . . . . . Repair Stations . | . . . . . . . . . . . . . . . . . Recycling Units . | . . . . . . . . . . . . . . . . . Scanalyzers 2 | . . . . . . 2 . . . . . . . . . . Garrison Access 3 | . . . . . 3 . . . . . . . . . . . Terminal Hacks 54 | . 2 1 50 . . . . 1 . . . . . . . . Record 49 | . . . 49 . . . . . . . . . . . . . Open Door 1 | . . 1 . . . . . . . . . . . . . . Branch Access Points 1 | . 1 . . . . . . . . . . . . . . . Alert Level 2 | . 1 . . . . . . 1 . . . . . . . . Proto ID Catalog 1 | . . . 1 . . . . . . . . . . . . . Fabricator Hacks 1 | . . . . . . . . 1 . . . . . . . . Network Status 1 | . . . . . . . . 1 . . . . . . . . Repair Station Hacks . | . . . . . . . . . . . . . . . . . Recycling Unit Hacks . | . . . . . . . . . . . . . . . . . Scanalyzer 1 | . . . . . . 1 . . . . . . . . . . Retrieve Study 1 | . . . . . . 1 . . . . . . . . . . Garrison Access Hacks 1 | . . . . . 1 . . . . . . . . . . . Seal Access 1 | . . . . . 1 . . . . . . . . . . . Unauthorized Hacks 1 | . . . . . . . . 1 . . . . . . . . Terminals . | . . . . . . . . . . . . . . . . . Fabricators 1 | . . . . . . . . 1 . . . . . . . . Fabnet 1 | . . . . . . . . 1 . . . . . . . . Repair Stations . | . . . . . . . . . . . . . . . . . Recycling Units . | . . . . . . . . . . . . . . . . . Scanalyzers . | . . . . . . . . . . . . . . . . . Garrison Access . | . . . . . . . . . . . . . . . . . Data Cores Recovered 2 | . . . . . 1 . . 1 . . . . . . . . Used 1 | . . . . . . . . 1 . . . . . . . . Hacking Detections 4 | . 1 . . . 1 1 . 1 . . . . . . . . Full Trace Events 1 | . . . . . . . . 1 . . . . . . . . Feedback Events . | . . . . . . . . . . . . . . . . . Feedback Blocked . | . . . . . . . . . . . . . . . . . Robot Schematics Acquired . | . . . . . . . . . . . . . . . . . Robots Built . | . . . . . . . . . . . . . . . . . Authchips . | . . . . . . . . . . . . . . . . . Time . | . . . . . . . . . . . . . . . . . Total Robot Build Rating . | . . . . . . . . . . . . . . . . . Part Schematics Acquired . | . . . . . . . . . . . . . . . . . Parts Built . | . . . . . . . . . . . . . . . . . Authchips . | . . . . . . . . . . . . . . . . . Time . | . . . . . . . . . . . . . . . . . Total Part Build Rating . | . . . . . . . . . . . . . . . . . Part Studies Acquired 1 | . . . . . . 1 . . . . . . . . . . Parts Repaired . | . . . . . . . . . . . . . . . . . Time . | . . . . . . . . . . . . . . . . . Parts Recycled . | . . . . . . . . . . . . . . . . . Recycled Matter . | . . . . . . . . . . . . . . . . . Retrieved Matter . | . . . . . . . . . . . . . . . . . Retrieved Components . | . . . . . . . . . . . . . . . . . Parts Scanalyzed . | . . . . . . . . . . . . . . . . . Part Schematics Acquired . | . . . . . . . . . . . . . . . . . Parts Damaged . | . . . . . . . . . . . . . . . . . Bothacking | -11 -10 -10 -10 -9 -8 -7 -6 -5 -5 -5 -5 -5 -4 -4 -4 -3 ------------ Run | Yrd Mat Min Exi Min Mat Fac Fac Fac Was Fac Upp Upp Fac Upp Upp Res Used RIF Installer . | . . . . . . . . . . . . . . . . . Robots Hacked 1 | . . . . . . . . . . . . . . 1 . . Non-combat . | . . . . . . . . . . . . . . . . . Combat 1 | . . . . . . . . . . . . . . 1 . . Robot Hacks Applied . | . . . . . . . . . . . . . . . . . Relay Couplers Released . | . . . . . . . . . . . . . . . . . Fabnet Peak Effective % 3 | . . . . . . . . . . . . . 3 3 3 1 Autooverrided 1 | . . . . . . . . . . . . . . 1 . . Robots Rewired 3 | . . . . . . . . . . . 2 1 . . . . Allies Hacked . | . . . . . . . . . . . . . . . . . Hacks Repelled . | . . . . . . . . . . . . . . . . . Allies | -11 -10 -10 -10 -9 -8 -7 -6 -5 -5 -5 -5 -5 -4 -4 -4 -3 -------- Run | Yrd Mat Min Exi Min Mat Fac Fac Fac Was Fac Upp Upp Fac Upp Upp Res Total Allies 26 | . . 2 . . . . . . 19 . 2 1 . 1 . 1 Largest Group 19 | . . 2 2 . . . . . 19 19 11 5 . 1 . 1 Highest-Rated Group 684 | . . 41 41 . . . . . 684 684 438 176 . 48 . 42 Highest-Rated Ally 50 | . . 31 31 . . . . . 50 50 50 46 . 48 . 42 Total Orders . | . . . . . . . . . . . . . . . . . Ally Attacks 182 | . . 7 . . . . . . . 98 34 38 . 3 . 2 Total Damage 5051 | . . 106 . . . . . . . 2597 1661 546 . 119 . 22 Kills 27 | . . 1 . . . . . . . 14 9 3 . . . . Allies Corrupted 2 | . . . . . . . . . . . 2 . . . . . Allies Melted . | . . . . . . . . . . . . . . . . . Intel | -11 -10 -10 -10 -9 -8 -7 -6 -5 -5 -5 -5 -5 -4 -4 -4 -3 ------- Run | Yrd Mat Min Exi Min Mat Fac Fac Fac Was Fac Upp Upp Fac Upp Upp Res Active Infowar (turns) 8021 | . . . . . . 865 623 1181 385 407 1035 556 378 1422 48 1121 Optics 2969 | . . . . . . . . . . . . . 378 1422 48 1121 Sensors 1516 | . . . . . . . 573 943 . . . . . . . . Structural 460 | . . . . . . 460 . . . . . . . . . . Traps 1135 | . . . . . . 756 379 . . . . . . . . . Machine Analysis 5590 | . . . . . . . . 238 385 407 1035 556 378 1422 48 1121 Robot Analysis Total . | . . . . . . . . . . . . . . . . . Derelict Logs Recovered 5 | . . 1 . . . . . . . . 1 2 . 1 . . Drone Launches . | . . . . . . . . . . . . . . . . . Drone Recoveries . | . . . . . . . . . . . . . . . . . Exploration | -11 -10 -10 -10 -9 -8 -7 -6 -5 -5 -5 -5 -5 -4 -4 -4 -3 ------------- Run | Yrd Mat Min Exi Min Mat Fac Fac Fac Was Fac Upp Upp Fac Upp Upp Res Turns Passed 11985 | 55 516 700 1445 329 439 865 626 1658 385 407 1035 556 378 1422 48 1121 Spaces Moved 5666 | 46 197 319 609 123 221 393 281 662 177 227 566 304 215 821 30 475 Core 7 | 7 . . . . . . . . . . . . . . . . Treads 3731 | . . . . . . 158 281 505 150 227 566 304 215 821 30 474 Legs 1886 | 13 181 319 609 123 221 235 . 157 27 . . . . . . 1 Wheels 42 | 26 16 . . . . . . . . . . . . . . . Hover . | . . . . . . . . . . . . . . . . . Flight . | . . . . . . . . . . . . . . . . . Fastest Speed 50 | 50 90 190 190 260 190 190 165 120 160 160 160 160 160 160 160 152 Average Speed 185 | 92 181 190 235 260 190 206 197 203 175 160 174 160 160 160 160 163 Slowest Speed 400 | 120 190 190 260 260 190 250 219 400 260 160 240 160 160 160 160 225 Overloaded Moves . | . . . . . . . . . . . . . . . . . Propulsion Burnouts . | . . . . . . . . . . . . . . . . . Robots Hopped . | . . . . . . . . . . . . . . . . . Potential Cave-ins . | . . . . . . . . . . . . . . . . . Cave-ins Triggered . | . . . . . . . . . . . . . . . . . Exploration Rate (%) 35 | 3 48 63 91 21 26 14 11 19 87 12 73 31 9 85 7 9 Regions Visited 16 Branch Regions 7 Pre-discovered Areas 2 | . . 1 1 . . . . . . . . . . . . . Known Exits Taken 13 | . 1 1 1 1 1 1 1 . . 1 1 1 1 1 1 . Unknown Exits Taken 1 | 1 . . . . . . . . . . . . . . . . Scrap Searched 10 | . . 1 . 1 . . . . . . 3 2 . 2 1 . Spaces Dug . | . . . . . . . . . . . . . . . . . Terrain Destroyed 363 | . . . . 2 14 4 . 44 58 34 1 83 79 31 . 13 Melee . | . . . . . . . . . . . . . . . . . Projectile 64 | . . . . 2 14 4 . 21 1 . . 5 . 4 . 13 AOE 299 | . . . . . . . . 23 57 34 1 78 79 27 . . Terrain Rammed . | . . . . . . . . . . . . . . . . . Walls Destroyed . | . . . . . . . . . . . . . . . . . Machines Disabled . | . . . . . . . . . . . . . . . . . Actions | -11 -10 -10 -10 -9 -8 -7 -6 -5 -5 -5 -5 -5 -4 -4 -4 -3 --------- Run | Yrd Mat Min Exi Min Mat Fac Fac Fac Was Fac Upp Upp Fac Upp Upp Res Total 6545 | 54 275 383 621 133 243 427 321 843 232 253 615 335 230 867 30 683 Wait 171 | . 10 33 . 7 7 3 8 12 27 21 9 5 . 4 . 25 Move 5651 | 45 196 318 608 122 220 392 280 662 176 226 565 303 214 820 29 475 Hop . | . . . . . . . . . . . . . . . . . Pick Up 82 | 2 8 4 2 3 7 6 2 21 5 . 1 . 4 6 1 10 Fast Attach 46 | 5 3 2 1 . 1 3 6 11 2 . . . 1 1 . 10 Attach 66 | . 2 . . 1 3 8 1 20 1 . . . 2 6 . 22 Detach 3 | . . . . . . . . 1 2 . . . . . . . Swap 26 | 2 6 4 1 . . 2 1 7 1 . 2 . . . . . Drop 44 | . 2 4 6 . 3 1 1 8 10 . 3 . 2 . . 4 Fire 358 | . 46 18 . . . 11 22 98 8 6 1 13 7 30 . 98 Melee 20 | . . . . . . . . . . . . . . . . 20 Ram 4 | . . . . . . . . . . . . . . . . 4 Kick 19 | . 2 . . . 2 1 . 2 . . . . . . . 12 Crush 2 | . . . . . . . . 1 . . . . . . . 1 Escape Stasis . | . . . . . . . . . . . . . . . . . Rewire 53 | . . . 3 . . . . . . . 34 14 . . . 2 Trap . | . . . . . . . . . . . . . . . . . Miscellaneous . | . . . . . . . . . . . . . . . . . Route ------- -11/Scrapyard -10/Materials (discovered 3 exits: *Mat / *Min x2) -10/Mines (discovered 3 exits: *Mat x2 / *Exi) -10/Exiles (discovered 2 exits: *Min x2) -9/Mines -8/Materials (discovered 2 exits: *Fac / [*Sto]) -7/Factory -6/Factory -5/Factory -5/Waste -5/Factory -5/Upper Caves -5/Upper Caves -4/Factory (discovered 2 exits: Res / *Upp) -4/Upper Caves -4/Upper Caves -3/Research (discovered 1 exit: [*Res]) History --------- Turn | Location | Event 16 | -11/Scrapyard | Discovered new exit (range 16) 56 | -11/Scrapyard | Entered Materials 271 | -10/Materials | Discovered new exit (range 15) 293 | -10/Materials | Identified exit to Materials 313 | -10/Materials | Build established: Mutant 331 | -10/Materials | Identified exit to Mines 492 | -10/Materials | Core integrity fell below 50% 572 | -10/Materials | Entered Mines 751 | -10/Mines | Learned location of Zion (-6) 903 | -10/Mines | Met a Derelict shopkeep closing up shop 993 | -10/Mines | Discovered exit to Materials (range 6) 1141 | -10/Mines | Discovered exit to Materials (range 15) 1219 | -10/Mines | Deemed a non-threat by the Exiles lab entrance 1219 | -10/Mines | Discovered new exit (range 5) 1252 | -10/Mines | Identified exit to Exiles 1272 | -10/Mines | Entered Exiles 1272 | -10/Exiles | Accompanied by 2 allies 1302 | -10/Exiles | Led the pair of lost Derelicts to a safe place 1316 | -10/Exiles | Met 8R-AWN 1350 | -10/Exiles | Met EX-HEX 1496 | -10/Exiles | Met EX-DEC 1629 | -10/Exiles | Visited The Gauntlet 2008 | -10/Exiles | Discovered new exit (range 14) 2042 | -10/Exiles | Identified exit to Mines 2200 | -10/Exiles | Met EX-BIN 2414 | -10/Exiles | Aligned with FarCom system 2416 | -10/Exiles | Given EX-Vault access code 2481 | -10/Exiles | Opened EX-Vault 2497 | -10/Exiles | Found Prototype Ballistic Gun 2497 | -10/Exiles | Identified AWS/Gauss 2515 | -10/Exiles | Found YOLO Cannon 2570 | -10/Exiles | Warned to stay clear of 0b10 Research branches 2696 | -10/Exiles | Discovered exit to Mines (range 14) 2717 | -10/Exiles | Stole two prototypes: YOLO Cannon, AWS/Gauss 2717 | -10/Exiles | Entered Mines 2932 | -9/Mines | Assembled infested the area 2937 | -9/Mines | Assisted by a Guerilla fighting off Assembled 3025 | -9/Mines | Discovered new exit (range 5) 3035 | -9/Mines | Identified exit to Materials 3046 | -9/Mines | Entered Materials 3046 | -8/Materials | Evolved 4 slots: Propulsion x2, Utility x2 3099 | -8/Materials | Met 7R-MNS 3337 | -8/Materials | Discovered new exit (range 15) 3343 | -8/Materials | Discovered new exit (range 12) 3368 | -8/Materials | Identified exit to Factory 3485 | -8/Materials | Entered Factory 3485 | -7/Factory | Evolved 2 slots: Utility x2 3486 | -7/Factory | Caught up to 7R-MNS 3487 | -7/Factory | FarCom data flow suspended 3768 | -7/Factory | AWS/Gauss suddenly broke down 3997 | -7/Factory | Lost 6 parts (1p4n1w) 4154 | -7/Factory | Discovered new exit (range 16) 4264 | -7/Factory | Build established: Scavenger-Mutant 4348 | -7/Factory | Identified exit to Factory 4350 | -7/Factory | Entered another Factory area 4350 | -6/Factory | Evolved 2 slots: Utility x2 4351 | -6/Factory | Caught up to 7R-MNS 4635 | -6/Factory | Garrison activated, responded to threat 4681 | -6/Factory | Build established: Scavenger-Skirmisher 4958 | -6/Factory | Discovered new exit (range 8) 4974 | -6/Factory | Identified exit to Factory 4976 | -6/Factory | Entered another Factory area 4976 | -5/Factory | Evolved 2 slots: Utility x2 4977 | -5/Factory | Caught up to 7R-MNS 5039 | -5/Factory | Build established: Scavenger-Mutant 5396 | -5/Factory | Garrison activated, responded to threat 5463 | -5/Factory | Lost 3 parts (2n1u) 5521 | -5/Factory | Lost 3 parts (1p2n) 5734 | -5/Factory | Build established: Mutant 6138 | -5/Factory | Lost 4 parts (1n1u2w) 6274 | -5/Factory | Spotted B-75 Beast 6321 | -5/Factory | Core integrity fell below 50% 6345 | -5/Factory | Lost 7 parts (5n2w) 6355 | -5/Factory | Build established: Scavenger-Mutant 6365 | -5/Factory | Destroyed B-75 Beast 6634 | -5/Factory | Sucked down chute 6634 | -5/Factory | Entered Waste 6699 | -5/Waste | Spotted C-40 Crusher 6701 | -5/Waste | Destroyed C-40 Crusher 6725 | -5/Waste | Spotted C-40 Crusher 6731 | -5/Waste | Destroyed C-40 Crusher 6731 | -5/Waste | Spotted C-40 Crusher 6741 | -5/Waste | Destroyed C-40 Crusher 6760 | -5/Waste | Spotted C-40 Crusher 6761 | -5/Waste | Destroyed C-40 Crusher 6781 | -5/Waste | Spotted C-40 Crusher 6793 | -5/Waste | Destroyed C-40 Crusher 6804 | -5/Waste | Spotted C-40 Crusher 6805 | -5/Waste | Destroyed C-40 Crusher 6850 | -5/Waste | Found Adv. Powered Armor 6880 | -5/Waste | Discovered new exit (range 12) 6894 | -5/Waste | Warlord forces began an assault 7003 | -5/Waste | Identified exit to Factory 7019 | -5/Waste | Entered Factory 7019 | -5/Factory | Accompanied by 19 allies 7116 | -5/Factory | Spotted B-75 Beast 7119 | -5/Factory | Destroyed B-75 Beast 7153 | -5/Factory | Garrison activated, responded to threat 7204 | -5/Factory | Lost 7 allies 7319 | -5/Factory | First assault squad dispatched 7376 | -5/Factory | Discovered new exit (range 15) 7398 | -5/Factory | Identified exit to Upper Caves 7426 | -5/Factory | Entered Upper Caves 7426 | -5/Upper Caves | Accompanied by 11 allies 7520 | -5/Upper Caves | Encountered a Warlord checkpoint 7783 | -5/Upper Caves | Learned 12 Factory zone layouts 8031 | -5/Upper Caves | Attracted the attention of an 0b10 outpost 8069 | -5/Upper Caves | Lost 5 allies 8384 | -5/Upper Caves | Discovered new exit (range 15) 8427 | -5/Upper Caves | Identified exit to Upper Caves 8461 | -5/Upper Caves | Entered another Upper Caves area 8461 | -5/Upper Caves | Accompanied by 5 allies 8555 | -5/Upper Caves | Attracted the attention of an 0b10 outpost 8617 | -5/Upper Caves | Learned location of 1 exit from Factory 8621 | -5/Upper Caves | Lost 5 allies 8863 | -5/Upper Caves | Discovered new exit (range 10) 8877 | -5/Upper Caves | Identified exit to Factory 9017 | -5/Upper Caves | Entered Factory 9017 | -4/Factory | Evolved 2 slots: Utility x2 9018 | -4/Factory | Identified exit to Upper Caves 9019 | -4/Factory | Identified exit to Research 9305 | -4/Factory | Spotted B-86 Titan 9319 | -4/Factory | Destroyed B-86 Titan 9395 | -4/Factory | Entered Upper Caves 9413 | -4/Upper Caves | Encountered a Master Thief 9417 | -4/Upper Caves | YOLO Cannon stolen by Master Thief 10154 | -4/Upper Caves | Attracted the attention of an 0b10 checkpoint 10448 | -4/Upper Caves | Attracted the attention of an 0b10 outpost 10547 | -4/Upper Caves | Lost 6 parts (1p1n3u1w) 10774 | -4/Upper Caves | Discovered new exit (range 18) 10815 | -4/Upper Caves | Identified exit to Upper Caves 10817 | -4/Upper Caves | Entered another Upper Caves area 10817 | -4/Upper Caves | Discovered exit to Research (range 16) 10865 | -4/Upper Caves | Entered Research 10865 | -3/Research | Evolved 2 slots: Utility x2 11133 | -3/Research | Lost 7 parts (1p1n3u2w) 11604 | -3/Research | Lost 4 parts (1n2u1w) 11760 | -3/Research | System corruption reached 10% 11815 | -3/Research | Lost 3 parts (2n1w) 11896 | -3/Research | Discovered new exit (range 20) 11905 | -3/Research | Core integrity fell below 50% 11922 | -3/Research | P-80 Master assimilated allied G-67 Veteran 11926 | -3/Research | Lost 4 parts (1p1n1u1w) 11957 | -3/Research | Core integrity fell below 20% 11986 | -3/Research | Destroyed by P-80 Master with Gamma Rifle Last Messages --------------- 11958_ Sml. Battery destroyed. 11959_ OQ2KH#SOXTSLQ,VV&09ZCB 11959_ Acquired 5 matter. 11960_ Acquired 10 matter. 11961_ Imp. Antigrav System destroyed. 11962_ Acquired 5 matter. 11963_ Acquired 10 matter. 11965_ Slammed into P-80 Master. 11967_ Adv. System Restoration Module purges 1% system corruption (24%). 11969_ Adv. System Restoration Module purges 1% system corruption (25%). 11969_ Com. Battery destroyed. 11970_ Imp. Antigrav System destroyed. 11971_ Adv. System Restoration Module purges 1% system corruption (25%). 11971_ Slammed into G-67 Veteran. 11973_ Adv. System Restoration Module destroyed. 11973_ Com. Battery destroyed. 11977_ Adv. System Restoration Module destroyed. 11978_ Adv. System Restoration Module purges 1% system corruption (24%). 11978_ >WEKI=YQ3BCO90 NZXJI>6AR1GJE